Cogmind - Beta 15 @@@ ROGUE MODE // 2025.07.30 @ 15:00:34 Player: Koba Result: Destroyed by Autobeam Turret with Autobeam Performance ------------- Evolutions (0) 0 Regions Visited (2) 400 Robots Destroyed (24) 120 Value Destroyed (584) 584 Prototype IDs (0) 0 Alien Tech Used (0) 0 Bonus (0) 0 TOTAL SCORE: 1104 Bonus ------- None Cogmind --------- Core Integrity 0/250 Matter 169/300 Energy 197/200 System Corruption 0% Temperature Cool (6) Movement Rolling (120) Ox1 Location -10/Subcaves Parts ------- > --- POWER (1) -------- Subdweller Power Source > --- PROPULSION (2) --- Aluminum Leg Subdweller Monowheel > --- UTILITY (2) ------ Large Storage Unit Seismic Detector > --- WEAPON (2) ------- Autogun Improved Light Cannon > --- INVENTORY (15) --- Subdweller Power Source Small Matter Pod (50) Subdweller Optics Sensor Array Signal Interpreter Improved Terrain Scanner Riot Gun Autogun Scrap Shield Fragment (46) Scrap Shield Fragment (46) Scrap Shield Fragment (46) Peak State ------------ > --- POWER ------------ Ion Engine > --- PROPULSION ------- Aluminum Leg Subdweller Monowheel > --- UTILITY ---------- Large Storage Unit Seismic Detector > --- WEAPON ----------- Riot Gun Autogun > --- INVENTORY -------- Subdweller Power Source Aluminum Leg Aluminum Leg Small Matter Pod Subdweller Optics Sensor Array Signal Interpreter Improved Terrain Scanner Autogun Autogun Improved Light Cannon Scrap Shield Fragment Scrap Shield Fragment [Rating: 13] Favorites ----------- Power Ion Engine Engine Ion Engine Power Core Light Nuclear Core Propulsion Aluminum Leg Leg Aluminum Leg Wheel Subdweller Monowheel Utility Seismic Detector Device Seismic Detector Storage Large Storage Unit Weapon Autogun Energy Gun Medium Laser Ballistic Gun Autogun Ballistic Cannon Improved Light Cannon Build | -11 -10 -10 ------- Run | Yrd Mat Sub Slots Evolved . | . . . Power . | . . . Propulsion . | . . . Utility . | . . . Weapon . | . . . Parts Attached 26 | 7 11 8 Power 6 | 1 2 3 Engine 5 | 1 1 3 Core 1 | . 1 . Reactor . | . . . Propulsion 7 | 2 4 1 Treads . | . . . Leg 6 | 2 4 . Wheel 1 | . . 1 Hover . | . . . Flight . | . . . Utility 3 | 2 1 . Device 1 | 1 . . Storage 2 | 1 1 . Processor . | . . . Hackware . | . . . Protection . | . . . Artifact . | . . . Weapon 10 | 2 4 4 Energy Gun 2 | 1 . 1 Energy Cannon . | . . . Ballistic Gun 6 | 1 3 2 Ballistic Cannon 2 | . 1 1 Launcher . | . . . Special Weapon . | . . . Impact Weapon . | . . . Slashing Weapon . | . . . Piercing Weapon . | . . . Special Melee Weapon . | . . . Unidentified Prototypes . | . . . Parts Lost 8 | . . 8 Power 2 | . . 2 Propulsion 3 | . . 3 Utility . | . . . Weapon 3 | . . 3 Highest Loss Streak 3 | . . 3 To Critical Strikes . | . . . Average Backups 9 | 5 9 9 Power 1 | . 1 1 Propulsion 1 | 3 1 1 Utility 3 | . 3 4 Weapon 3 | . 3 3 Tool/Special . | . . . Unused Backups 11 | . 5 6 Power 1 | . . 1 Propulsion 4 | . 4 . Utility 5 | . . 5 Weapon 1 | . 1 . Tool/Special . | . . . Average Slot Usage (%) 99 | . 100 99 Engine 8 | . 6 9 Core 5 | . 7 4 Leg 25 | . 28 24 Wheel 2 | . . 3 Device 14 | . 14 14 Storage 14 | . 14 14 Energy Gun 1 | . 4 . Ballistic Gun 16 | . 14 16 Ballistic Cannon 10 | . 9 10 Peak Build Rating 13 | 8 12 13 Average Rating 10 | 5 10 11 On Entrance 6 | . 8 12 Naked Turns . | . . . Heaviest Build 33 | 12 33 33 Greatest Support 20 | 20 20 20 Greatest Overweight (x) 3 | 3 1 2 Average Overweight (x) . | . . 1 Largest Inventory Capacity 15 | 8 15 15 Average Capacity 13 | 7 11 15 Most Carried 13 | 8 11 13 Average Carried 10 | 5 9 11 Final Capacity 15 | 8 15 15 Final Carried 11 | 8 11 11 Class Distribution -------------------- 74% | Mutant 25% | Scavenger-Mutant Dominant Class ---------------- Mutant | -10/Materials Mutant | -10/Subcaves Resources | -11 -10 -10 ----------- Run | Yrd Mat Sub Matter Collected 996 | 294 311 391 Remotely . | . . . Salvage Created 652 | 110 246 296 Parts 47 | 9 20 18 Haulers Intercepted . | . . . Recyclers Shooed 2 | 1 1 . Parts Field Recycled . | . . . Retrieved Matter . | . . . Parts Self-Destructed 14 | . . 14 Prevented . | . . . Kills | -11 -10 -10 ------- Run | Yrd Mat Sub Combat Hostiles Destroyed 19 | . 6 13 Guns 12 | . 4 8 Cannons 7 | . 2 5 Classes Destroyed 6 | 2 1 3 Worker 1 | 1 . . Tunneler 4 | 3 1 . Swarmer 7 | . . 7 Grunt 6 | . 6 . Sentry 1 | . . 1 Subdweller 5 | . . 5 Best Kill Streak 4 | 2 3 4 Combat Bots Only 4 | . 2 4 Max Kills in Single Turn 2 | 1 1 2 Gunslinging . | . . . Exploded . | . . . Melee . | . . . Uniques/NPCs Destroyed . | . . . Combat | -11 -10 -10 -------- Run | Yrd Mat Sub Hostile Shots Fired 176 | . 39 137 Missed 51 | . 10 41 Hits 125 | . 29 96 Projectile 125 | . 29 96 AOE 1 | . 1 . Critical Strikes 1 | . . 1 Damage Taken 1610 | . 403 1207 Core 251 | . 85 166 Absorbed by Shields . | . . . Core Remaining (%) 100 | 100 . . Volleys Fired 102 | 13 27 62 Largest 2 | 2 2 2 Hottest 73 | 70 70 73 Shots Fired 189 | 26 52 111 Gun 137 | 26 33 78 Cannon 52 | . 19 33 Launcher . | . . . Special . | . . . Kinetic 160 | 13 44 103 Thermal 21 | 13 8 . Explosive . | . . . Electromagnetic 8 | . . 8 Robot Hit Streak 19 | 7 10 19 Robot Miss Streak 5 | 2 3 5 Penetration Max . | . . . Secondary Targets 1 | . . 1 Max Gunslinging Chain 1 | . . 1 Shots Hit Robots 119 | 16 34 69 Core Hits 38 | 9 11 18 Critical Kills . | . . . Critical Parts Destroyed . | . . . Critical Strikes 2 | . 1 1 Blast 2 | . 1 1 Melee Attacks . | . . . Impact . | . . . Slashing . | . . . Piercing . | . . . Sneak Attacks . | . . . Combat Hostiles . | . . . Follow-up Attacks . | . . . Damage Inflicted 1652 | 165 492 995 Guns 970 | 165 229 576 Cannons 682 | . 263 419 Explosions . | . . . Melee . | . . . Ramming . | . . . Kinetic 1437 | 64 417 956 Thermal 176 | 101 75 . Explosive . | . . . Electromagnetic 39 | . . 39 Impact . | . . . Slashing . | . . . Piercing . | . . . Highest Corruption . | . . . Average Corruption . | . . . Corruption Purged . | . . . Corruption Blocked . | . . . Overload Shots . | . . . Overflow Damage 1 | . . 1 Projectiles 1 | . . 1 Explosions . | . . . Melee . | . . . Knockbacks 14 | . 10 4 Impact . | . . . Kinetic 12 | . 8 4 Secondary 2 | . 2 . Self-Inflicted Damage . | . . . Shots . | . . . Rammed . | . . . Targets Rammed . | . . . Kicked . | . . . Crushed . | . . . Highest Temperature 216 | 50 216 7 Average Temperature 45 | 21 60 4 Received Heat Transfer 474 | . 207 267 Effects 1 | . 1 . Energy Bleed 1 | . 1 . Siege Activations . | . . . Martial Activations . | . . . Shielding Activations . | . . . Robots Disrupted . | . . . Combat Hostiles . | . . . Robots Corrupted . | . . . Combat Hostiles . | . . . Parts Fried . | . . . Impact Corruptions . | . . . Robots Melted . | . . . Combat Hostiles . | . . . Parts Melted 2 | . 1 1 Heat Transferred 518 | 296 222 . Parts Sabotaged . | . . . Parts Stolen . | . . . Parts Stripped . | . . . Power Chain Reactions . | . . . Alert | -11 -10 -10 ------- Run | Yrd Mat Sub Maximum Alert Level . | . . . Low Security (%) 100 | 100 100 . Level 1 . | . . . Level 2 . | . . . Level 3 . | . . . Level 4 . | . . . Level 5 . | . . . High Security . | . . . Max Security . | . . . Peak Influence 51 | 5 51 . Initial 3 | . 3 . Average 13 | 1 17 . Influence Increases 421 | 20 171 230 Destroy 0b10 Robot/C 280 | . 120 160 Destroy 0b10 Robot/NC 25 | 20 5 . Destroy Leader 40 | . 30 10 Disable Machine 15 | . 15 . Destroy Structure 1 | . 1 . Lose Combat Pursuer 60 | . . 60 Influence Decreases 299 | 15 176 108 Entered New Map 2 | . 2 . Time Decay 277 | 15 174 88 Lost Part 20 | . . 20 Squads Dispatched 1 | . 1 . Investigation 1 | . 1 . Extermination . | . . . Reinforcement . | . . . Assault . | . . . Garrison . | . . . Intercept . | . . . Searches Triggered . | . . . Construction Impeded . | . . . Haulers Reinforced . | . . . Active Scanning Responses . | . . . Cargo Convoy Interrupts . | . . . Stealth | -11 -10 -10 --------- Run | Yrd Mat Sub Distress Signals 1 | . 1 . Communications Jammed . | . . . Distress Signals . | . . . Times Spotted 27 | . 11 16 Peak Tracking Total 6 | . 5 6 Tactical Retreats 2 | . . 2 Traps | -11 -10 -10 ------- Run | Yrd Mat Sub Traps Triggered 1 | . 1 . Indirectly . | . . . Trap Hack Attempts . | . . . Triggered . | . . . Disarmed 6 | . 6 . Reprogrammed . | . . . Reused . | . . . Traps Extracted . | . . . Installed . | . . . Triggered . | . . . Machines | -11 -10 -10 ---------- Run | Yrd Mat Sub Machines Disabled 2 | . 1 1 Max in Single Turn 1 | . 1 1 Machines Repaired . | . . . Machines Dismantled . | . . . Machines Sabotaged . | . . . Overloaded Fab Kills . | . . . Hacking | -11 -10 -10 --------- Run | Yrd Mat Sub Machines Accessed 2 | . 2 . Terminals 2 | . 2 . Fabricators . | . . . Repair Stations . | . . . Recycling Units . | . . . Scanalyzers . | . . . Garrison Access . | . . . Total Hacks 5 | . 5 . Successful 4 | . 4 . Failed 1 | . 1 . Catastrophic . | . . . Database Lockouts . | . . . Manual 1 | . 1 . Terminals 5 | . 5 . Fabricators . | . . . Repair Stations . | . . . Recycling Units . | . . . Scanalyzers . | . . . Garrison Access . | . . . Terminal Hacks 3 | . 3 . Robot Analysis 1 | . 1 . Locate Traps 1 | . 1 . Disarm Traps 1 | . 1 . Fabricator Hacks . | . . . Repair Station Hacks . | . . . Recycling Unit Hacks . | . . . Scanalyzer . | . . . Garrison Access Hacks . | . . . Unauthorized Hacks 1 | . 1 . Terminals 1 | . 1 . Botnet 1 | . 1 . Fabricators . | . . . Repair Stations . | . . . Recycling Units . | . . . Scanalyzers . | . . . Garrison Access . | . . . Data Cores Recovered . | . . . Used . | . . . Hacking Detections 2 | . 2 . Full Trace Events . | . . . Feedback Events . | . . . Feedback Blocked . | . . . Robot Schematics Acquired . | . . . Robots Built . | . . . Authchips . | . . . Time . | . . . Total Robot Build Rating . | . . . Part Schematics Acquired . | . . . Parts Built . | . . . Authchips . | . . . Time . | . . . Total Part Build Rating . | . . . Parts Repaired . | . . . Time . | . . . Parts Recycled . | . . . Recycled Matter . | . . . Retrieved Matter . | . . . Retrieved Components . | . . . Parts Scanalyzed . | . . . Part Schematics Acquired . | . . . Parts Damaged . | . . . Bothacking | -11 -10 -10 ------------ Run | Yrd Mat Sub Used RIF Installer . | . . . Robots Hacked . | . . . Non-combat . | . . . Combat . | . . . Robot Hacks Applied . | . . . Relay Couplers Released . | . . . Fabnet Peak Effective % . | . . . Robots Rewired . | . . . Allies Hacked . | . . . Hacks Repelled . | . . . Allies | -11 -10 -10 -------- Run | Yrd Mat Sub Total Allies . | . . . Largest Group . | . . . Highest-Rated Group . | . . . Highest-Rated Ally . | . . . Total Orders . | . . . Ally Attacks . | . . . Total Damage . | . . . Kills . | . . . Allies Corrupted . | . . . Allies Melted . | . . . Intel | -11 -10 -10 ------- Run | Yrd Mat Sub Active Infowar (turns) 2110 | 82 556 1472 Seismic 2110 | 82 556 1472 Robot Analysis Total 1 | . 1 . Derelict Logs Recovered 2 | . . 2 Drone Launches . | . . . Drone Recoveries . | . . . Exploration | -11 -10 -10 ------------- Run | Yrd Mat Sub Turns Passed 2202 | 174 556 1472 Spaces Moved 1099 | 92 280 727 Core 9 | 9 . . Treads . | . . . Legs 866 | 83 280 503 Wheels 224 | . . 224 Hover . | . . . Flight . | . . . Fastest Speed 50 | 50 120 120 Average Speed 161 | 129 152 168 Slowest Speed 260 | 200 190 260 Overloaded Moves . | . . . Propulsion Burnouts . | . . . Robots Hopped . | . . . Potential Cave-ins . | . . . Cave-ins Triggered . | . . . Exploration Rate (%) 35 | 7 44 54 Regions Visited 2 Branch Regions 1 Pre-discovered Areas 1 | . . 1 Known Exits Taken . | . . . Unknown Exits Taken 2 | 1 1 . Scrap Searched . | . . . Spaces Dug . | . . . Terrain Destroyed . | . . . Melee . | . . . Projectile . | . . . AOE . | . . . Terrain Rammed . | . . . Walls Destroyed . | . . . Machines Disabled . | . . . Actions | -11 -10 -10 --------- Run | Yrd Mat Sub Total 1363 | 119 368 876 Wait 90 | . 26 64 Move 1097 | 91 279 727 Hop . | . . . Pick Up 23 | 8 8 7 Fast Attach 11 | 7 3 1 Attach 7 | . . 7 Detach 2 | . 2 . Swap 16 | . 9 7 Drop 15 | . 14 1 Fire 102 | 13 27 62 Melee . | . . . Ram . | . . . Kick . | . . . Crush . | . . . Escape Stasis . | . . . Rewire . | . . . Trap . | . . . Miscellaneous . | . . . Route ------- -11/Scrapyard -10/Materials (discovered 3 exits: [*Mat] / [*Min] / [*Sub]) -10/Subcaves (discovered 1 exit: [*Rec]) History --------- Turn | Location | Event 18 | -11/Scrapyard | Discovered new exit (range 16) 175 | -11/Scrapyard | Entered Materials 240 | -10/Materials | Discovered new exit (range 6) 319 | -10/Materials | Discovered new exit (range 6) 323 | -10/Materials | Build established: Mutant 559 | -10/Materials | Discovered new exit (range 9) 731 | -10/Materials | Entered Subcaves 917 | -10/Subcaves | Build established: Scavenger-Mutant 1180 | -10/Subcaves | Core integrity fell below 50% 1212 | -10/Subcaves | Lost 3 parts (1p1n1w) 1473 | -10/Subcaves | Build established: Mutant 1728 | -10/Subcaves | Shifting Twisted Machinery released Riot Gun 1729 | -10/Subcaves | Shifting Twisted Machinery released Sub. Monowheel 1962 | -10/Subcaves | Core integrity fell below 20% 1994 | -10/Subcaves | Lost 3 parts (1p2n) 2078 | -10/Subcaves | Learned Materials stockpile data 2191 | -10/Subcaves | Discovered new exit (range 15) 2203 | -10/Subcaves | Destroyed by Autobeam Turret with Autobeam Last Messages --------------- 01976_ Subatomizers dissect the Corrupted Disposable Heat Sink. 01979_ Acquired Scrap Shield Fragment. 02078_ Acquired derelict log, extracted data. Data stored: Materials stockpile data. 02080_ Acquired 26 matter. 02092_ Sub. Power Source shoots sparks and powers down. 02094_ Dropped Broken Sub. Power Source. 02146_ OD-KA1(u) tweaks Twisted Machinery. 02169_ S-10 Pest destroyed. 02178_ OD-KA1(u) tweaks Twisted Machinery. 02184_ Flight Unit fries itself beyond repair. 02184_ S-10 Pest destroyed. 02187_ Acquired 43 matter. 02188_ Acquired 12 matter. 02191_ EXIT=FOUND 02199_ Autogun destroyed. 02203_ Destroyed Autobeam. Map ----- +----------------------------------------------------+ | ?????????????????????????????????????????????????? | | ?????????????????????????????????????????????????? | | ?????????????????????????????????????????????????? | | ?????????????????????????????????????????????????? | | ?????????????????????????????????????????????????? | | ?????????????????????????????????????????????????? | | ?????????????????????????????????????????????????? | | ?????????????????????????????????????????????????? | | ?????????????????????????????????????????????????? | | ?????????????????????????????????????????????????? | | ??????????????????????????#??????????????????????? | | ????????????????????????##